lending/lending_fUSD_20251018
["ID","MTS","AMOUNT","RATE_DAILY","PERIOD"]
[391735794,1760763033738,-11719.4781964,0.00032453,2]
[391735795,1760763033747,-7623.46254048,0.00032453,2]
[391735796,1760763033757,-150.52,0.00032453,2]
[391735798,1760763033767,-20000.0,0.00032463,7]
[391735799,1760763033776,-1153.83,0.00032673,7]
[391735800,1760763033785,-7623.46254048,0.0003274,2]
[391735801,1760763033794,-5731.5204978,0.0003275,2]
[391735802,1760763033803,-12233.52009595,0.00032758,2]
[391735803,1760763033813,-188.41416666,0.00032877,2]
[391735804,1760763033823,-800.0,0.000329,12]
[391735805,1760763033832,-1153.83,0.00032947,7]
[391735806,1760763033841,-154.0,0.000332,120]
[391735807,1760763033850,-7623.46254048,0.00033211,2]
[391735808,1760763033861,-1153.83,0.00033221,7]
[391735809,1760763033871,-1095.72,0.00033221,120]
[391735810,1760763033880,-11719.4781964,0.00033248,2]
[391735811,1760763033890,-152.0,0.00033258,3]
[391735812,1760763033899,-151.0,0.00033453,30]
[391735813,1760763033908,-151.0,0.00033453,30]
[391735814,1760763033918,-239.434217,0.00033453,30]
[391735815,1760763033927,-152.51067,0.00033453,30]
[391735816,1760763033936,-151.0,0.00033453,30]
[391735817,1760763033945,-151.0,0.00033453,30]
[391735818,1760763033955,-151.0,0.00033453,30]
[391735819,1760763033964,-272.375598,0.00033453,30]
[391735820,1760763033973,-151.0,0.00033453,30]
[391735821,1760763033982,-151.0,0.00033453,30]
[391735822,1760763033992,-151.0,0.00033453,30]
[391735823,1760763034001,-151.0,0.00033453,30]
[391735824,1760763034011,-151.0,0.00033453,30]
[391735825,1760763034020,-151.0,0.00033453,30]
[391735826,1760763034030,-151.0,0.00033453,30]
[391735827,1760763034039,-151.0,0.00033453,30]
[391735828,1760763034048,-151.0,0.00033453,30]
[391735829,1760763034058,-82036.3473751,0.00033453,2]
[391735830,1760763034067,-26563.37204995,0.00033453,2]
[391735831,1760763034082,-783.23866056,0.00033453,2]
[391735832,1760763034093,-343.24244796,0.00033453,2]
[391735833,1760763034104,-453.76047859,0.00033453,2]
[391735834,1760763034116,-440.56810984,0.00033453,2]
[391735835,1760763034128,-2861.97121494,0.00033453,2]
[391735836,1760763034139,-2923.86007476,0.00033453,2]
[391735837,1760763034150,-13747.53908174,0.00033453,2]
[391735838,1760763034166,-441.68914908,0.00033453,2]
[391735839,1760763034177,-6894.34816185,0.00033453,2]
[391735840,1760763034188,-5934.27856082,0.00033453,2]
[391735843,1760763037436,-574.41973399,0.00033453,2]
[391735844,1760763037596,-4034.70999996,0.00033453,2]
[391735845,1760763037607,-753.45729556,0.00033453,2]
[391735846,1760763037618,-9671.8507946,0.00033453,2]
[391735847,1760763037630,-1493.01427382,0.00033453,2]
[391735848,1760763037641,-1494.29444188,0.00033453,2]
[391736055,1760763039850,-151.0,0.00033453,30]
[391736057,1760763039865,-4448.4734154,0.00033453,2]
[391736059,1760763039876,-150.52,0.00033453,2]
[391736061,1760763039886,-300.0,0.00033462,10]
[391736063,1760763039895,-138409.4899116,0.00033463,2]
[391736064,1760763039904,-3034.8144898,0.00033463,2]
[391736067,1760763039915,-5908.2162565,0.00033463,2]
[391736069,1760763039925,-151.0,0.00033463,30]
[391736071,1760763039935,-151.0,0.00033463,30]
[391736073,1760763039945,-151.0,0.00033463,30]
[391736075,1760763039957,-151.0,0.00033463,30]
[391736077,1760763039966,-151.0,0.00033463,30]
[391736079,1760763039975,-151.0,0.00033463,30]
[391736081,1760763039985,-151.0,0.00033463,30]
[391736083,1760763039994,-240.766777,0.00033463,30]
[391736084,1760763040003,-151.806957,0.00033463,30]
[391736087,1760763040012,-151.0,0.00033463,30]
[391736089,1760763040023,-151.0,0.00033463,30]
[391736091,1760763040032,-151.0,0.00033463,30]
[391736093,1760763040042,-151.0,0.00033463,30]
[391736095,1760763040051,-151.0,0.00033463,30]
[391736097,1760763040060,-151.0,0.00033463,30]
[391736099,1760763040070,-151.0,0.00033463,30]
[391736101,1760763040079,-151.0,0.00033463,30]
[391736103,1760763040089,-151.0,0.00033463,30]
[391736105,1760763040098,-151.0,0.00033463,30]
[391736107,1760763040107,-4863.7628982,0.00033463,2]
[391736109,1760763040117,-151.0,0.00033463,30]
[391736111,1760763040126,-164.218119,0.00033463,30]
[391736113,1760763040135,-164.218119,0.00033463,30]
[391736115,1760763040144,-164.218119,0.00033463,30]
[391736117,1760763040154,-164.218119,0.00033463,30]
[391736119,1760763040163,-151.0,0.00033463,30]
[391736139,1760763040332,-151.0,0.00033463,30]
[391736141,1760763040342,-151.31035981,0.00033463,30]
[391736143,1760763040351,-151.0,0.00033463,30]
[391736145,1760763040361,-151.0,0.00033463,30]
[391736146,1760763040370,-151.0,0.00033463,30]
[391736148,1760763040379,-151.0,0.00033463,30]
[391736151,1760763040389,-151.0,0.00033463,30]
[391736152,1760763040398,-151.0,0.00033463,30]
[391736154,1760763040407,-151.0,0.00033463,30]
[391736156,1760763040417,-151.0,0.00033463,30]
[391736158,1760763040426,-185.297903,0.00033463,30]
[391736161,1760763040435,-185.297903,0.00033463,30]
[391736163,1760763040445,-185.297903,0.00033463,30]
[391736165,1760763040454,-152.615496,0.00033463,30]
[391736167,1760763040465,-185.297903,0.00033463,30]
[391736168,1760763040474,-152.615496,0.00033463,30]
[391736170,1760763040484,-152.615496,0.00033463,30]
[391736172,1760763040493,-152.615496,0.00033463,30]
[391736174,1760763040502,-151.0,0.00033463,30]
[391736177,1760763040511,-151.0,0.00033463,30]
[391736179,1760763040520,-151.0,0.00033463,30]
[391736181,1760763040530,-151.0,0.00033463,30]
[391736182,1760763040539,-151.0,0.00033463,30]
[391736184,1760763040548,-151.0,0.00033463,30]
[391736187,1760763040557,-151.0,0.00033463,30]
[391736188,1760763040566,-151.0,0.00033463,30]
[391736190,1760763040575,-239.862636,0.00033463,30]
[391736192,1760763040584,-151.0,0.00033463,30]
[391736194,1760763040594,-151.0,0.00033463,30]
[391736196,1760763040603,-151.0,0.00033463,30]
[391736199,1760763040613,-151.0,0.00033463,30]
[391736201,1760763040622,-151.673395,0.00033463,30]
[391736203,1760763040631,-151.0,0.00033463,30]
[391736205,1760763040640,-151.0,0.00033463,30]
[391736207,1760763040649,-151.0,0.00033463,30]
[391736209,1760763040658,-275.100874,0.00033463,30]
[391736211,1760763040668,-151.0,0.00033463,30]
[391736212,1760763040677,-151.0,0.00033463,30]
[391736214,1760763040687,-151.0,0.00033463,30]
[391736216,1760763040696,-151.0,0.00033463,30]
[391736218,1760763040705,-151.0,0.00033463,15]
[391736220,1760763040714,-151.0,0.00033463,15]
[391736222,1760763040723,-151.975845,0.00033463,30]
[391736224,1760763040732,-151.0,0.00033463,30]
[391736226,1760763040741,-151.0,0.00033463,30]
[391736228,1760763040750,-151.0,0.00033463,30]
[391736230,1760763040759,-151.0,0.00033463,30]
[391736232,1760763040768,-151.0,0.00033463,30]
[391736234,1760763040777,-151.0,0.00033463,30]
[391736236,1760763040787,-151.0,0.00033463,30]
[391736238,1760763040796,-151.0,0.00033463,30]
[391736240,1760763040805,-151.0,0.00033463,30]
[391736242,1760763040814,-186.762803,0.00033463,30]
[391736244,1760763040823,-151.0,0.00033463,30]
[391736246,1760763040832,-151.0,0.00033463,30]
[391736248,1760763040841,-151.0,0.00033463,30]
[391736250,1760763040850,-151.0,0.00033463,30]
[391736252,1760763040860,-247.262232,0.00033463,30]
[391736254,1760763040869,-357.293366,0.00033463,30]
[391736257,1760763040884,-357.293366,0.00033463,30]
[391736258,1760763040894,-151.0,0.00033463,30]
[391736261,1760763040903,-151.0,0.00033463,30]
[391736262,1760763040912,-161.52306,0.00033463,30]
[391736265,1760763040922,-357.293366,0.00033463,30]
[391736266,1760763040931,-151.0,0.00033463,30]
[391736268,1760763040939,-151.0,0.00033463,30]
[391736270,1760763040949,-357.293366,0.00033463,30]
[391736273,1760763040959,-151.0,0.00033463,30]
[391736275,1760763040968,-151.0,0.00033463,30]
[391736277,1760763040977,-151.0,0.00033463,30]
[391736278,1760763040985,-151.0,0.00033463,30]
[391736281,1760763040997,-151.0,0.00033463,30]
[391736283,1760763041006,-151.0,0.00033463,30]
[391736285,1760763041015,-151.0,0.00033463,30]
[391736287,1760763041024,-151.0,0.00033463,30]
[391736289,1760763041033,-151.0,0.00033463,30]
[391736291,1760763041042,-151.0,0.00033463,30]
[391736293,1760763041051,-151.0,0.00033463,14]
[391736295,1760763041060,-151.0,0.00033463,30]
[391736297,1760763041069,-151.807298,0.00033463,30]
[391736299,1760763041078,-151.0,0.00033463,30]
[391736301,1760763041087,-151.0,0.00033463,30]
[391736302,1760763041096,-151.0,0.00033463,30]
[391736304,1760763041106,-151.0,0.00033463,30]
[391736307,1760763041115,-275.70432,0.00033463,30]
[391736309,1760763041124,-151.0,0.00033463,30]
[391736310,1760763041133,-151.0,0.00033463,30]
[391736312,1760763041142,-151.0,0.00033463,30]
[391736314,1760763041151,-151.0,0.00033463,30]
[391736316,1760763041160,-151.0,0.00033463,30]
[391736318,1760763041170,-151.0,0.00033463,30]
[391736320,1760763041179,-193.17406,0.00033463,30]
[391736322,1760763041188,-193.17406,0.00033463,30]
[391736324,1760763041197,-193.17406,0.00033463,30]
[391736326,1760763041207,-193.17406,0.00033463,30]
[391736328,1760763041215,-151.0,0.00033463,30]
[391736330,1760763041224,-151.0,0.00033463,30]
[391736332,1760763041233,-151.0,0.00033463,30]
[391736334,1760763041242,-151.0,0.00033463,30]
[391736336,1760763041251,-151.0,0.00033463,30]
[391736338,1760763041262,-152.035995,0.00033463,30]
[391736340,1760763041273,-168.842052,0.00033463,30]
[391736343,1760763041283,-168.842052,0.00033463,30]
[391736344,1760763041292,-168.842052,0.00033463,30]
[391736347,1760763041301,-168.842052,0.00033463,30]
[391736348,1760763041311,-151.0,0.00033463,30]
[391736351,1760763041320,-151.0,0.00033463,30]
[391736353,1760763041329,-151.0,0.00033463,30]
[391736354,1760763041339,-151.0,0.00033463,30]
[391736356,1760763041348,-151.0,0.00033463,30]
[391736359,1760763041357,-151.0,0.00033463,30]
[391736361,1760763041366,-151.0,0.00033463,30]
[391736363,1760763041375,-151.0,0.00033463,30]
[391736364,1760763041385,-151.0,0.00033463,30]
[391736366,1760763041394,-151.0,0.00033463,30]
[391736368,1760763041403,-151.0,0.00033463,30]
[391736371,1760763041413,-500.0,0.00033473,5]
[391736372,1760763041422,-200.0,0.00033473,5]
[391736374,1760763041431,-500.0,0.00033473,5]
[391736377,1760763041440,-5731.5204978,0.00033494,2]
[391736378,1760763041450,-1153.83,0.00033495,7]
[391736381,1760763041459,-11719.4781964,0.00033501,2]
[391736383,1760763041468,-7623.46254048,0.00033501,2]
[391736385,1760763041477,-12233.52009595,0.00033511,2]
[391736386,1760763041486,-152.0,0.000336,120]
[391736389,1760763041496,-300.0,0.00033671,2]
[391736390,1760763041505,-1153.83,0.00033769,7]
[391736393,1760763041514,-1003.9812218,0.00034021,5]
[391736395,1760763041523,-1000.0,0.00034021,5]
[391736397,1760763041532,-1153.86108846,0.00034043,7]
[391736399,1760763041542,-400.0,0.00034158,5]
[391736401,1760763041551,-406.91945594,0.00034163,2]
[391736403,1760763041559,-7623.46254048,0.00034227,2]
[391736405,1760763041569,-5731.5204978,0.00034237,2]
[391736407,1760763041578,-12233.52009595,0.00034263,2]
[391736409,1760763041587,-11719.4781964,0.00034307,2]
[391736411,1760763041596,-1095.72,0.00034317,120]
[391736413,1760763041605,-150.52,0.00034524,2]
[391736415,1760763041613,-11719.4781964,0.00034534,2]
[391736416,1760763041623,-15246.925081,0.00034534,2]
[391736419,1760763041633,-151.0,0.00034534,30]
[391736420,1760763041641,-151.0,0.00034534,30]
[391736423,1760763041651,-151.0,0.00034534,30]
[391736424,1760763041660,-151.0,0.00034534,30]
[391736425,1760763041671,-151.0,0.00034534,30]
[391736426,1760763041679,-151.0,0.00034534,30]
[391736427,1760763041688,-151.0,0.00034534,30]
[391736428,1760763041697,-151.0,0.00034534,30]
[391736429,1760763041706,-195.302448,0.00034534,30]
[391736430,1760763041715,-2050.0,0.00034544,2]
[391736431,1760763041724,-3408.0,0.00034544,2]
[391736432,1760763041732,-750.0,0.00034544,2]
[391736433,1760763041742,-1267.0,0.00034544,2]
[391736434,1760763041751,-1310.0,0.00034544,2]
[391736435,1760763041759,-605.0,0.00034544,2]
[391736436,1760763041768,-571.0,0.00034544,2]
[391736437,1760763041777,-1589.0,0.00034544,2]
[391736438,1760763041786,-817.0,0.00034544,2]
[391736439,1760763041795,-6437.0,0.00034544,2]
[391736441,1760763041804,-2590.0,0.00034544,2]
[391736443,1760763041813,-557.0,0.00034544,2]
[391736445,1760763041822,-1737.0,0.00034554,2]
[391736447,1760763041831,-451.55283726,0.00034554,2]
[391736449,1760763041840,-500.0,0.00034568,5]
[391736451,1760763041849,-1396.55639526,0.00034623,2]
[391736453,1760763041859,-152.0,0.000348,120]
[391736455,1760763041868,-600.0,0.00034842,5]
[391736457,1760763041882,-7623.46254048,0.00034905,2]
[391736459,1760763041891,-178.72523896,0.00034915,7]
[391736461,1760763041901,-150.0,0.00034915,7]
[391736463,1760763041910,-150.0,0.00034915,7]
[391736465,1760763041920,-150.0,0.00034915,7]
[391736467,1760763041929,-150.0,0.00034915,7]
[391736469,1760763041938,-200.75217304,0.00034915,7]
[391736471,1760763041948,-150.0,0.00034915,7]
[391736473,1760763041959,-150.00000001,0.00034915,7]
[391736475,1760763041968,-150.0,0.00034915,7]
[391736477,1760763041977,-150.0,0.00034915,7]
[391736479,1760763041986,-150.0,0.00034915,7]
[391736481,1760763041996,-150.0,0.00034915,7]
[391736483,1760763042005,-150.0,0.00034915,7]
[391736485,1760763042014,-150.0,0.00034915,7]
[391736487,1760763042023,-150.0,0.00034915,7]
[391736489,1760763042032,-150.26071564,0.00034915,7]
[391736491,1760763042041,-162.01875243,0.00034915,7]
[391736493,1760763042050,-150.0,0.00034915,7]
[391736495,1760763042060,-150.0,0.00034915,7]
[391736497,1760763042069,-5731.5204978,0.00034981,2]
[391736499,1760763042078,-546.86,0.00035,120]
[391736501,1760763042088,-186.89,0.00035,120]
[391736503,1760763042098,-568.33,0.00035,120]
[391736505,1760763042107,-475.74147678,0.00035,120]
[391736507,1760763042116,-11719.4781964,0.00035005,2]
[391736509,1760763042125,-7623.46254048,0.00035005,2]
[391736511,1760763042134,-151.0,0.00035015,30]
[391736513,1760763042143,-151.0,0.00035015,30]
[391736515,1760763042152,-151.0,0.00035015,14]
[391736517,1760763042162,-151.0,0.00035015,30]
[391736518,1760763042171,-151.0,0.00035015,30]
[391736521,1760763042181,-151.0,0.00035015,30]
[391736522,1760763042190,-151.0,0.00035015,30]
[391736524,1760763042200,-151.0,0.00035015,30]
[391736527,1760763042209,-151.0,0.00035015,30]
[391736529,1760763042219,-151.0,0.00035015,30]
[391736530,1760763042228,-181.26830879,0.00035015,30]
[391736532,1760763042238,-151.0,0.00035015,30]
[391736534,1760763042247,-193.17406,0.00035015,30]
[391736536,1760763042256,-193.17406,0.00035015,30]
[391736538,1760763042266,-193.17406,0.00035015,30]
[391736540,1760763042275,-193.17406,0.00035015,30]
[391736543,1760763042285,-151.0,0.00035015,30]
[391736545,1760763042295,-151.0,0.00035015,30]
[391736547,1760763042304,-189.772013,0.00035015,30]
[391736549,1760763042314,-195.748025,0.00035015,30]
[391736550,1760763042323,-168.842052,0.00035015,30]
[391736552,1760763042332,-168.842052,0.00035015,30]
[391736554,1760763042342,-168.842052,0.00035015,30]
[391736557,1760763042351,-168.842052,0.00035015,30]
[391736559,1760763042360,-12233.52009595,0.00035015,2]
[391736560,1760763042369,-150.0,0.000351,7]
[391736562,1760763042379,-150.0,0.00035143,7]
[391736565,1760763042389,-151.0,0.0003524,30]
[391736566,1760763042398,-151.0,0.0003524,30]
[391736568,1760763042407,-151.0,0.0003524,30]
[391736570,1760763042416,-151.0,0.0003524,30]
[391736572,1760763042425,-151.0,0.0003524,30]
[391736574,1760763042434,-151.0,0.0003524,30]
[391736576,1760763042443,-151.0,0.0003524,30]
[391736578,1760763042452,-151.0,0.0003524,30]
[391736580,1760763042461,-11719.4781964,0.0003524,2]
[391736582,1760763042471,-15246.925081,0.0003524,2]
[391736585,1760763042481,-7495.72439881,0.0003525,2]
[391736587,1760763042490,-21704.54690313,0.0003525,2]
[391736588,1760763042500,-258.910321,0.0003525,30]
[391736591,1760763042509,-151.0,0.0003525,30]
[391736592,1760763042519,-151.0,0.0003525,15]
[391736594,1760763042527,-278.991564,0.0003525,15]
[391736596,1760763042536,-151.0,0.0003525,30]
[391736598,1760763042545,-151.0,0.0003525,30]
[391736600,1760763042554,-151.0,0.0003525,30]
[391736602,1760763042563,-150.0,0.00035268,7]
[391736604,1760763042572,-150.0,0.00035285,7]
[391736606,1760763042581,-150.0,0.00035346,7]
[391736608,1760763042590,-150.0,0.00035371,7]
[391736610,1760763042599,-154.0,0.000354,120]
[391736612,1760763042607,-150.0,0.000354,7]
[391736614,1760763042616,-1095.72,0.00035413,120]
[391736616,1760763042625,-11719.4781964,0.00035415,2]
[391736618,1760763042634,-7623.46254048,0.00035415,2]
[391736620,1760763042643,-474.87,0.00035425,2]
[391736622,1760763042652,-473.62,0.00035425,2]
[391736624,1760763042661,-705.33,0.00035425,2]
[391736626,1760763042671,-949.58,0.00035425,2]
[391736628,1760763042680,-695.39,0.00035425,2]
[391736630,1760763042689,-695.39,0.00035425,2]
[391736632,1760763042697,-695.39,0.00035425,2]
[391736634,1760763042706,-396.6,0.00035455,2]
[391736636,1760763042715,-150.0,0.00035469,7]
[391736638,1760763042724,-325.65,0.00035472,2]
[391736640,1760763042734,-386.71,0.000355,30]
[391736642,1760763042742,-800.0,0.00035527,5]
[391736644,1760763042752,-150.0,0.00035562,7]
[391736646,1760763042761,-150.0,0.00035562,7]
[391736648,1760763042770,-150.0,0.00035562,7]
[391736650,1760763042780,-150.0,0.00035562,7]
[391736652,1760763042789,-150.0,0.000356,7]
[391736654,1760763042798,-1978.74055,0.00035606,2]
[391736656,1760763042807,-150.0,0.0003562,7]
[391736658,1760763042815,-150.0,0.00035654,7]
[391736660,1760763042825,-7623.46254048,0.00035715,2]
[391736662,1760763042834,-11719.4781964,0.00035723,2]
[391736664,1760763042843,-5731.5204978,0.00035725,2]
[391736666,1760763042852,-151.0,0.00035725,120]
[391736668,1760763042861,-151.0,0.00035725,120]
[391736670,1760763042870,-151.0,0.00035725,120]
[391736672,1760763042883,-151.0,0.00035725,120]
[391736673,1760763042891,-151.0,0.00035725,120]
[391736675,1760763042900,-151.0,0.00035725,120]
[391736677,1760763042909,-151.0,0.00035725,120]
[391736679,1760763042918,-151.0,0.00035725,120]
[391736681,1760763042927,-151.0,0.00035725,120]
[391736683,1760763042937,-357.293366,0.00035725,120]
[391736685,1760763042945,-357.293366,0.00035725,120]
[391736687,1760763042955,-151.0,0.00035725,120]
[391736689,1760763042964,-151.0,0.00035725,120]
[391736691,1760763042973,-357.293366,0.00035725,120]
[391736693,1760763042982,-151.0,0.00035725,120]
[391736695,1760763042991,-151.0,0.00035725,120]
[391736697,1760763043000,-357.293366,0.00035725,120]
[391736699,1760763043009,-151.0,0.00035725,120]
[391736701,1760763043018,-151.0,0.00035725,120]
[391736704,1760763043027,-151.0,0.00035725,120]
[391736707,1760763043037,-151.0,0.00035725,120]
[391736710,1760763043048,-151.0,0.00035725,120]
[391736714,1760763043061,-151.0,0.00035725,120]
[391736717,1760763043069,-151.0,0.00035725,120]
[391736719,1760763043079,-151.0,0.00035725,120]
[391736722,1760763043088,-151.0,0.00035733,120]
[391736725,1760763043097,-152.518088,0.00035733,120]
[391736728,1760763043106,-151.0,0.00035733,120]
[391736731,1760763043115,-151.0,0.00035733,120]
[391736735,1760763043125,-151.0,0.00035733,120]
[391736738,1760763043135,-151.0,0.00035733,120]
[391736740,1760763043144,-151.0,0.00035733,120]
[391736744,1760763043153,-151.0,0.00035733,120]
[391736747,1760763043162,-151.0,0.00035733,30]
[391736749,1760763043171,-185.297903,0.00035733,120]
[391736753,1760763043181,-185.297903,0.00035733,120]
[391736755,1760763043190,-185.297903,0.00035733,120]
[391736758,1760763043199,-152.615496,0.00035733,120]
[391736761,1760763043208,-185.297903,0.00035733,120]
[391736764,1760763043217,-152.615496,0.00035733,120]
[391736767,1760763043227,-152.615496,0.00035733,120]
[391736771,1760763043236,-152.615496,0.00035733,120]
[391736773,1760763043246,-151.0,0.00035733,120]
[391736777,1760763043255,-151.0,0.00035733,120]
[391736778,1760763043265,-151.0,0.00035733,120]
[391736780,1760763043275,-151.0,0.00035733,120]
[391736782,1760763043284,-151.0,0.00035733,120]
[391736784,1760763043293,-151.0,0.00035733,120]
[391736786,1760763043302,-151.0,0.00035733,120]
[391736788,1760763043311,-151.0,0.00035733,120]
[391736790,1760763043320,-151.0,0.00035733,120]
[391736792,1760763043330,-221.934202,0.00035733,120]
[391736794,1760763043340,-151.0,0.00035733,120]
[391736796,1760763043349,-7623.46254048,0.00035758,2]
[391736798,1760763043359,-12233.52009595,0.00035768,2]
[391736800,1760763043369,-150.0,0.00035777,7]
[391736802,1760763043378,-150.0,0.00035828,7]
[391736804,1760763043388,-150.0,0.00035839,7]
[391736806,1760763043398,-5257.94341993,0.0003585,60]
[391736808,1760763043408,-151.0,0.0003585,120]
[391736811,1760763043418,-151.0,0.0003585,120]
[391736812,1760763043427,-151.0,0.0003585,120]
[391736815,1760763043438,-151.0,0.0003585,120]
[391736816,1760763043447,-151.0,0.0003585,120]
[391736818,1760763043456,-151.0,0.0003585,120]
[391736820,1760763043466,-151.0,0.0003585,120]
[391736823,1760763043476,-152.0,0.00035855,4]
[391736824,1760763043485,-150.0,0.00035885,7]
[391736827,1760763043495,-150.0,0.00035885,7]
[391736828,1760763043504,-201.72,0.00035915,120]
[391736830,1760763043514,-250.0,0.00035973,5]
[391736833,1760763043524,-460.91917915,0.00035973,5]
[391736834,1760763043533,-150.0,0.00035973,7]
[391736836,1760763043543,-35158.4345893,0.0003599,2]
[391736838,1760763043552,-38117.3127024,0.0003599,2]
[391736841,1760763043562,-206.0,0.00036,120]
[391736843,1760763043572,-158.85187772,0.00036,30]
[391736845,1760763043581,-50029.6841841,0.00036,6]
[391736847,1760763043591,-10677.73684714,0.00036,2]
[391736848,1760763043601,-263.15270487,0.00036,120]
[391736851,1760763043610,-342.34,0.00036,2]
[391736853,1760763043620,-151.0,0.00036,120]
[391736854,1760763043630,-151.0,0.00036,120]
[391736857,1760763043640,-158.0,0.00036,30]
[391736859,1760763043649,-151.0,0.00036,120]
[391736860,1760763043659,-151.0,0.00036,120]
[391736863,1760763043668,-151.0,0.00036,120]
[391736865,1760763043678,-151.0,0.00036,120]
[391736867,1760763043688,-292.169469,0.00036,120]
[391736868,1760763043696,-151.546922,0.00036,120]
[391736870,1760763043706,-151.0,0.00036,120]
[391736872,1760763043715,-151.0,0.00036,120]
[391736875,1760763043725,-151.0,0.00036,120]
[391736877,1760763043734,-151.0,0.00036,120]
[391736879,1760763043743,-152.561865,0.00036,120]
[391736881,1760763043753,-151.0,0.00036,120]
[391736883,1760763043762,-196.712523,0.00036,120]
[391736885,1760763043771,-151.0,0.00036,120]
[391736887,1760763043780,-152.323838,0.00036,120]
[391736889,1760763043789,-151.787228,0.00036,120]
[391736891,1760763043798,-164.218119,0.00036,120]
[391736893,1760763043807,-164.218119,0.00036,120]
[391736895,1760763043816,-164.218119,0.00036,120]
[391736910,1760763043954,-164.218119,0.00036,120]
[391736912,1760763043965,-151.0,0.00036,14]
[391736914,1760763043975,-152.782393,0.00036,120]
[391736916,1760763043984,-151.0,0.00036,120]
[391736918,1760763043993,-151.0,0.00036,120]
[391736920,1760763044002,-151.321672,0.00036,120]
[391736922,1760763044011,-151.0,0.00036,120]
[391736924,1760763044020,-152.856011,0.00036,120]
[391736926,1760763044029,-193.17406,0.00036,120]
[391736927,1760763044038,-193.17406,0.00036,120]
[391736929,1760763044047,-193.17406,0.00036,120]
[391736931,1760763044056,-193.17406,0.00036,120]
[391736934,1760763044066,-151.0,0.00036,120]
[391736935,1760763044075,-151.0,0.00036,120]
[391736938,1760763044084,-168.842052,0.00036,120]
[391736940,1760763044093,-168.842052,0.00036,120]
[391736942,1760763044102,-168.842052,0.00036,120]
[391736943,1760763044112,-168.842052,0.00036,120]
[391736945,1760763044121,-150.0,0.00036023,7]
[391736947,1760763044130,-150.0,0.00036056,7]
[391736949,1760763044139,-198.326431,0.00036089,17]
[391736951,1760763044148,-152.0,0.000361,120]
[391736953,1760763044158,-4457.39549157,0.0003612,7]
[391736956,1760763044168,-11719.4781964,0.00036198,2]
[391736958,1760763044177,-150.0,0.00036208,7]
[391736960,1760763044186,-150.0,0.00036208,7]
[391736961,1760763044196,-150.0,0.00036208,7]
[391736963,1760763044205,-150.0,0.00036208,7]
[391736965,1760763044214,-150.0,0.00036208,7]
[391736967,1760763044224,-150.0,0.00036208,7]
[391736969,1760763044234,-1000.0,0.00036212,5]
[391736971,1760763044243,-166.66,0.00036246,30]
[391736973,1760763044252,-150.0,0.00036284,7]
[391736976,1760763044262,-406.91945594,0.0003631,2]
[391736978,1760763044272,-150.0,0.00036326,7]
[391736980,1760763044281,-500.0,0.0003636,5]
[391736981,1760763044291,-150.0,0.0003637,7]
[391736983,1760763044301,-333.0,0.00036372,2]
[391736986,1760763044312,-7623.46254048,0.00036374,2]
[391736988,1760763044321,-1390.06,0.00036384,2]